[Event "Titled Tuesday Blitz August 08 Late 2023"]
[White "Fernandez Siles, Luis"]
[Black "Liu, Casper"]
[WhiteFideId "2209420"]
[BlackFideId "1454153"]
[WhiteElo "2321"]
[BlackElo "2500"]
[Result "1-0"]
[Round "2"]
[TimeControl "180+1"]
[Date "2023.08.08"]
[WhiteClock "0:00:33"]
[BlackClock "0:00:07"]
[Board "145"]

1. e4 {[%clk 0:03:00]}  c6 {[%clk 0:02:58]} 2. d4 {[%clk 0:02:58]}  d5 {[%clk 0:02:59]} 3. exd5 {[%clk 0:02:59]}  cxd5 {[%clk 0:03:00]} 4. c4 {[%clk 0:02:59]}  e6 {[%clk 0:02:59]} 5. Nc3 {[%clk 0:02:59]}  Nf6 {[%clk 0:02:59]} 6. Nf3 {[%clk 0:02:58]}  Be7 {[%clk 0:03:00]} 7. cxd5 {[%clk 0:02:58]}  exd5 {[%clk 0:02:53]} 8. Bd3 {[%clk 0:02:57]}  O-O {[%clk 0:02:51]} 9. h3 {[%clk 0:02:57]}  Re8 {[%clk 0:02:49]} 10. O-O {[%clk 0:02:57]}  Nc6 {[%clk 0:02:49]} 11. a3 {[%clk 0:02:47]}  Be6 {[%clk 0:02:41]} 12. Bc2 {[%clk 0:02:41]}  Qd7 {[%clk 0:02:40]} 13. Ne5 {[%clk 0:02:38]}  Qc7 {[%clk 0:02:10]} 14. Nxc6 {[%clk 0:02:35]}  bxc6 {[%clk 0:02:09]} 15. Na4 {[%clk 0:02:16]}  Rad8 {[%clk 0:01:50]} 16. Be3 {[%clk 0:02:10]}  Ne4 {[%clk 0:01:36]} 17. Qf3 {[%clk 0:01:52]}  Bf6 {[%clk 0:01:25]} 18. Rac1 {[%clk 0:01:42]}  Bg5 {[%clk 0:00:45]} 19. Bxg5 {[%clk 0:01:21]}  Nxg5 {[%clk 0:00:45]} 20. Qd3 {[%clk 0:01:21]}  g6 {[%clk 0:00:22]} 21. Nc5 {[%clk 0:01:12]}  Bf5 {[%clk 0:00:22]} 22. Qg3 {[%clk 0:01:12]}  Qxg3 {[%clk 0:00:22]} 23. fxg3 {[%clk 0:01:11]}  Ne4 {[%clk 0:00:21]} 24. Bxe4 {[%clk 0:01:04]}  Bxe4 {[%clk 0:00:22]} 25. Rfe1 {[%clk 0:00:58]}  Rb8 {[%clk 0:00:20]} 26. b4 {[%clk 0:00:57]}  Rb6 {[%clk 0:00:20]} 27. Nxe4 {[%clk 0:00:56]}  Rxe4 {[%clk 0:00:21]} 28. Rxe4 {[%clk 0:00:56]}  dxe4 {[%clk 0:00:22]} 29. g4 {[%clk 0:00:55]}  Kg7 {[%clk 0:00:21]} 30. Rc5 {[%clk 0:00:53]}  Ra6 {[%clk 0:00:19]} 31. Rc3 {[%clk 0:00:48]}  f5 {[%clk 0:00:18]} 32. gxf5 {[%clk 0:00:47]}  gxf5 {[%clk 0:00:19]} 33. Kf2 {[%clk 0:00:46]}  Kf6 {[%clk 0:00:20]} 34. Ke3 {[%clk 0:00:44]}  h6 {[%clk 0:00:18]} 35. Kf4 {[%clk 0:00:44]}  Ke6 {[%clk 0:00:18]} 36. Rc5 {[%clk 0:00:43]}  Rxa3 {[%clk 0:00:18]} 37. Rxc6+ {[%clk 0:00:43]}  Kd7 {[%clk 0:00:17]} 38. Rxh6 {[%clk 0:00:43]}  Rb3 {[%clk 0:00:16]} 39. Kxf5 {[%clk 0:00:42]}  Rxb4 {[%clk 0:00:16]} 40. Rh7+ {[%clk 0:00:42]}  Ke8 {[%clk 0:00:14]} 41. Kxe4 {[%clk 0:00:42]}  a5 {[%clk 0:00:13]} 42. g4 {[%clk 0:00:39]}  Rb1 {[%clk 0:00:08]} 43. Ra7 {[%clk 0:00:37]}  Rh1 {[%clk 0:00:08]} 44. Rxa5 {[%clk 0:00:37]}  Rxh3 {[%clk 0:00:09]} 45. Kf5 {[%clk 0:00:37]}  Rf3+ {[%clk 0:00:09]} 46. Ke4 {[%clk 0:00:37]}  Rf1 {[%clk 0:00:08]} 47. g5 {[%clk 0:00:37]}  Kf7 {[%clk 0:00:08]} 48. Ra6 {[%clk 0:00:36]}  Re1+ {[%clk 0:00:08]} 49. Kd5 {[%clk 0:00:35]}  Rg1 {[%clk 0:00:08]} 50. g6+ {[%clk 0:00:35]}  Ke7 {[%clk 0:00:05]} 51. Ra7+ {[%clk 0:00:35]}  Kf6 {[%clk 0:00:04]} 52. g7 {[%clk 0:00:35]}  Rxg7 {[%clk 0:00:03]} 53. Rxg7 {[%clk 0:00:34]}  Kxg7 {[%clk 0:00:04]} 54. Kd6 {[%clk 0:00:33]}  Kf8 {[%clk 0:00:05]} 55. Kc7 {[%clk 0:00:32]}  Ke8 {[%clk 0:00:06]} 56. d5 {[%clk 0:00:32]}  Ke7 {[%clk 0:00:07]} 57. d6+ {[%clk 0:00:33]}  Ke8 {[%clk 0:00:07]} 58. d7+ {[%clk 0:00:33]} 1-0


[Site "https://www.chess.com"]

[Event "Titled Tuesday Blitz August 08 Late 2023"]
[White "Ibadov, Dashgyn"]
[Black "AndresDelgado77"]
[WhiteFideId "24107514"]
[WhiteElo "2500"]
[BlackElo "2318"]
[Result "1-0"]
[Round "2"]
[TimeControl "180+1"]
[Date "2023.08.08"]
[WhiteClock "0:00:19"]
[BlackClock "0:00:00"]
[Board "146"]

1. e4 {[%clk 0:03:00]}  e6 {[%clk 0:02:57]} 2. d4 {[%clk 0:03:00]}  d5 {[%clk 0:02:56]} 3. Nc3 {[%clk 0:03:00]}  Nf6 {[%clk 0:02:53]} 4. e5 {[%clk 0:03:00]}  Nfd7 {[%clk 0:02:52]} 5. Nce2 {[%clk 0:03:01]}  b6 {[%clk 0:02:50]} 6. Nf3 {[%clk 0:02:57]}  Ba6 {[%clk 0:02:49]} 7. g3 {[%clk 0:02:51]}  c5 {[%clk 0:02:49]} 8. c3 {[%clk 0:02:51]}  Nc6 {[%clk 0:02:48]} 9. a3 {[%clk 0:02:44]}  Be7 {[%clk 0:02:26]} 10. Bg2 {[%clk 0:02:44]}  Qc7 {[%clk 0:02:15]} 11. O-O {[%clk 0:02:43]}  h6 {[%clk 0:02:13]} 12. Re1 {[%clk 0:02:38]}  Bxe2 {[%clk 0:02:11]} 13. Qxe2 {[%clk 0:02:36]}  c4 {[%clk 0:02:09]} 14. h4 {[%clk 0:02:28]}  a5 {[%clk 0:02:02]} 15. a4 {[%clk 0:02:12]}  O-O-O {[%clk 0:01:53]} 16. b3 {[%clk 0:02:10]}  cxb3 {[%clk 0:01:51]} 17. Rb1 {[%clk 0:02:09]}  Rdg8 {[%clk 0:01:35]} 18. Rxb3 {[%clk 0:02:02]}  g5 {[%clk 0:01:34]} 19. h5 {[%clk 0:01:48]}  Kb7 {[%clk 0:01:15]} 20. Be3 {[%clk 0:01:41]}  Ka7 {[%clk 0:01:12]} 21. Reb1 {[%clk 0:01:37]}  Rb8 {[%clk 0:01:11]} 22. Bf1 {[%clk 0:01:27]}  Rb7 {[%clk 0:01:06]} 23. Ne1 {[%clk 0:00:52]}  Ncb8 {[%clk 0:00:58]} 24. Nc2 {[%clk 0:00:46]}  Rc8 {[%clk 0:00:55]} 25. Qd3 {[%clk 0:00:42]}  Nf8 {[%clk 0:00:44]} 26. Bc1 {[%clk 0:00:39]}  Qc6 {[%clk 0:00:40]} 27. Ba3 {[%clk 0:00:34]}  Rcc7 {[%clk 0:00:33]} 28. Bxe7 {[%clk 0:00:33]}  Rxe7 {[%clk 0:00:33]} 29. Na3 {[%clk 0:00:32]}  Re8 {[%clk 0:00:16]} 30. Nb5+ {[%clk 0:00:32]}  Ka8 {[%clk 0:00:16]} 31. Nd6 {[%clk 0:00:33]}  Rc8 {[%clk 0:00:14]} 32. Nxc8 {[%clk 0:00:31]}  Qxc8 {[%clk 0:00:14]} 33. Rxb6 {[%clk 0:00:32]}  Rxb6 {[%clk 0:00:14]} 34. Rxb6 {[%clk 0:00:33]}  Nfd7 {[%clk 0:00:15]} 35. Rb5 {[%clk 0:00:30]}  Nc6 {[%clk 0:00:13]} 36. c4 {[%clk 0:00:29]}  dxc4 {[%clk 0:00:10]} 37. Qxc4 {[%clk 0:00:30]}  Qc7 {[%clk 0:00:10]} 38. Bg2 {[%clk 0:00:30]}  Nb8 {[%clk 0:00:07]} 39. Rc5 {[%clk 0:00:23]}  Kb7 {[%clk 0:00:05]} 40. Qb5+ {[%clk 0:00:20]}  Qb6 {[%clk 0:00:05]} 41. Bxc6+ {[%clk 0:00:19]}  Nxc6 {[%clk 0:00:00]} 42. Rxc6 {[%clk 0:00:19]} 1-0


[Site "https://www.chess.com"]

[Event "Titled Tuesday Blitz August 08 Late 2023"]
[White "Garmendiarov"]
[Black "Yu, Jennifer"]
[BlackFideId "2078341"]
[WhiteElo "2316"]
[BlackElo "2499"]
[Result "0-1"]
[Round "2"]
[TimeControl "180+1"]
[Date "2023.08.08"]
[WhiteClock "0:00:07"]
[BlackClock "0:00:16"]
[Board "148"]

1. e4 {[%clk 0:03:00]}  e5 {[%clk 0:02:59]} 2. Nf3 {[%clk 0:03:00]}  Nc6 {[%clk 0:02:59]} 3. Bb5 {[%clk 0:03:01]}  a6 {[%clk 0:02:59]} 4. Ba4 {[%clk 0:03:01]}  Nf6 {[%clk 0:02:59]} 5. O-O {[%clk 0:03:02]}  b5 {[%clk 0:02:59]} 6. Bb3 {[%clk 0:03:02]}  Be7 {[%clk 0:02:59]} 7. Re1 {[%clk 0:03:01]}  O-O {[%clk 0:02:58]} 8. a4 {[%clk 0:03:01]}  Bb7 {[%clk 0:02:57]} 9. d3 {[%clk 0:03:02]}  d6 {[%clk 0:02:56]} 10. Nbd2 {[%clk 0:02:58]}  Nd4 {[%clk 0:02:54]} 11. Nxd4 {[%clk 0:02:55]}  exd4 {[%clk 0:02:55]} 12. Nf3 {[%clk 0:02:49]}  c5 {[%clk 0:02:55]} 13. Bg5 {[%clk 0:02:26]}  h6 {[%clk 0:02:54]} 14. Bh4 {[%clk 0:02:24]}  Rc8 {[%clk 0:02:42]} 15. axb5 {[%clk 0:02:20]}  axb5 {[%clk 0:02:43]} 16. Bxf6 {[%clk 0:01:52]}  Bxf6 {[%clk 0:02:42]} 17. Bd5 {[%clk 0:01:52]}  Qb6 {[%clk 0:02:35]} 18. Qd2 {[%clk 0:01:13]}  Ra8 {[%clk 0:02:25]} 19. b3 {[%clk 0:00:43]}  Bxd5 {[%clk 0:02:23]} 20. exd5 {[%clk 0:00:44]}  Qb7 {[%clk 0:02:23]} 21. h3 {[%clk 0:00:24]}  Qxd5 {[%clk 0:02:21]} 22. Ra5 {[%clk 0:00:20]}  Qc6 {[%clk 0:02:07]} 23. Rea1 {[%clk 0:00:19]}  Rxa5 {[%clk 0:02:04]} 24. Qxa5 {[%clk 0:00:20]}  c4 {[%clk 0:02:00]} 25. Qa6 {[%clk 0:00:19]}  Qc5 {[%clk 0:01:54]} 26. Ra5 {[%clk 0:00:17]}  cxb3 {[%clk 0:01:51]} 27. cxb3 {[%clk 0:00:14]}  Qc1+ {[%clk 0:01:37]} 28. Kh2 {[%clk 0:00:14]}  Qc2 {[%clk 0:01:03]} 29. Qxb5 {[%clk 0:00:13]}  Qxf2 {[%clk 0:01:01]} 30. Qc4 {[%clk 0:00:12]}  Re8 {[%clk 0:00:59]} 31. Ra7 {[%clk 0:00:11]}  Be5+ {[%clk 0:00:43]} 32. Nxe5 {[%clk 0:00:11]}  Rxe5 {[%clk 0:00:43]} 33. Ra1 {[%clk 0:00:07]}  Re2 {[%clk 0:00:28]} 34. Rg1 {[%clk 0:00:07]}  Kh7 {[%clk 0:00:23]} 35. Qd5 {[%clk 0:00:07]}  f5 {[%clk 0:00:23]} 36. Qxd6 {[%clk 0:00:07]}  f4 {[%clk 0:00:23]} 37. Qd5 {[%clk 0:00:06]}  Qg3+ {[%clk 0:00:15]} 38. Kh1 {[%clk 0:00:06]}  Qg6 {[%clk 0:00:15]} 39. Qxd4 {[%clk 0:00:06]}  f3 {[%clk 0:00:14]} 40. Qe4 {[%clk 0:00:06]}  Rxe4 {[%clk 0:00:14]} 41. dxe4 {[%clk 0:00:07]}  f2 {[%clk 0:00:14]} 42. Rf1 {[%clk 0:00:07]}  Qxe4 {[%clk 0:00:14]} 43. Rxf2 {[%clk 0:00:08]}  Qe1+ {[%clk 0:00:15]} 44. Kh2 {[%clk 0:00:07]}  Qxf2 {[%clk 0:00:16]} 0-1


[Site "https://www.chess.com"]

[Event "Titled Tuesday Blitz August 08 Late 2023"]
[White "Lopez Idarraga, Daniel Eduardo"]
[Black "chess123456s"]
[WhiteFideId "4405501"]
[WhiteElo "2309"]
[BlackElo "2493"]
[Result "0-1"]
[Round "2"]
[TimeControl "180+1"]
[Date "2023.08.08"]
[WhiteClock "0:00:51"]
[BlackClock "0:01:59"]
[Board "152"]

1. d4 {[%clk 0:03:00]}  d5 {[%clk 0:02:59]} 2. Nf3 {[%clk 0:02:59]}  Nf6 {[%clk 0:02:58]} 3. c4 {[%clk 0:02:59]}  c6 {[%clk 0:02:50]} 4. e3 {[%clk 0:02:59]}  e6 {[%clk 0:02:50]} 5. Nc3 {[%clk 0:02:59]}  Nbd7 {[%clk 0:02:50]} 6. Bd2 {[%clk 0:02:59]}  Bd6 {[%clk 0:02:46]} 7. Qc2 {[%clk 0:02:59]}  O-O {[%clk 0:02:45]} 8. Rd1 {[%clk 0:02:59]}  b6 {[%clk 0:02:43]} 9. cxd5 {[%clk 0:02:57]}  exd5 {[%clk 0:02:42]} 10. Bd3 {[%clk 0:02:56]}  Re8 {[%clk 0:02:41]} 11. O-O {[%clk 0:02:56]}  Bb7 {[%clk 0:02:41]} 12. Rfe1 {[%clk 0:02:53]}  c5 {[%clk 0:02:33]} 13. e4 {[%clk 0:02:41]}  cxd4 {[%clk 0:02:25]} 14. Nxd4 {[%clk 0:02:38]}  dxe4 {[%clk 0:02:23]} 15. Nxe4 {[%clk 0:02:34]}  Rc8 {[%clk 0:02:21]} 16. Qb1 {[%clk 0:02:31]}  Nxe4 {[%clk 0:02:19]} 17. Bxe4 {[%clk 0:02:32]}  Bxe4 {[%clk 0:02:19]} 18. Rxe4 {[%clk 0:02:33]}  Rxe4 {[%clk 0:02:18]} 19. Qxe4 {[%clk 0:02:34]}  Nf6 {[%clk 0:02:18]} 20. Qh4 {[%clk 0:02:26]}  Be5 {[%clk 0:02:13]} 21. Bc3 {[%clk 0:02:00]}  Ne4 {[%clk 0:02:05]} 22. Qxd8+ {[%clk 0:01:59]}  Rxd8 {[%clk 0:02:04]} 23. Re1 {[%clk 0:00:51]}  Bxd4 {[%clk 0:01:59]} 0-1


[Site "https://www.chess.com"]

[Event "Titled Tuesday Blitz August 08 Late 2023"]
[White "Fontaine, Quentin"]
[Black "rionelG"]
[WhiteFideId "230804"]
[WhiteElo "2488"]
[BlackElo "2301"]
[Result "0-1"]
[Round "2"]
[TimeControl "180+1"]
[Date "2023.08.08"]
[WhiteClock "0:00:10"]
[BlackClock "0:00:07"]
[Board "156"]

1. Nf3 {[%clk 0:03:00]}  Nf6 {[%clk 0:02:59]} 2. g3 {[%clk 0:03:01]}  g6 {[%clk 0:02:59]} 3. b3 {[%clk 0:02:59]}  Bg7 {[%clk 0:03:00]} 4. Bb2 {[%clk 0:03:00]}  O-O {[%clk 0:03:00]} 5. Bg2 {[%clk 0:02:59]}  d6 {[%clk 0:02:58]} 6. d4 {[%clk 0:02:57]}  Nbd7 {[%clk 0:02:58]} 7. O-O {[%clk 0:02:57]}  e5 {[%clk 0:02:57]} 8. dxe5 {[%clk 0:02:58]}  dxe5 {[%clk 0:02:54]} 9. Nxe5 {[%clk 0:02:54]}  Ng4 {[%clk 0:02:47]} 10. Nc4 {[%clk 0:02:49]}  Nde5 {[%clk 0:02:37]} 11. Nba3 {[%clk 0:02:30]}  Be6 {[%clk 0:02:21]} 12. h3 {[%clk 0:02:18]}  Nxc4 {[%clk 0:02:15]} 13. Nxc4 {[%clk 0:02:14]}  Bxc4 {[%clk 0:02:12]} 14. Bxg7 {[%clk 0:02:07]}  Kxg7 {[%clk 0:02:07]} 15. bxc4 {[%clk 0:01:51]}  Ne5 {[%clk 0:01:58]} 16. Qd5 {[%clk 0:01:40]}  Qf6 {[%clk 0:01:50]} 17. Qxb7 {[%clk 0:01:34]}  c6 {[%clk 0:01:29]} 18. c5 {[%clk 0:01:26]}  Rfb8 {[%clk 0:01:23]} 19. Qc7 {[%clk 0:01:25]}  Rb5 {[%clk 0:00:58]} 20. Qd6 {[%clk 0:01:19]}  Rd8 {[%clk 0:00:57]} 21. Qxf6+ {[%clk 0:01:18]}  Kxf6 {[%clk 0:00:58]} 22. f4 {[%clk 0:01:13]}  Nc4 {[%clk 0:00:58]} 23. e4 {[%clk 0:01:13]}  Ne3 {[%clk 0:00:49]} 24. e5+ {[%clk 0:01:12]}  Kg7 {[%clk 0:00:49]} 25. Rf2 {[%clk 0:00:54]}  Rxc5 {[%clk 0:00:46]} 26. Be4 {[%clk 0:00:53]}  Rd4 {[%clk 0:00:46]} 27. Bd3 {[%clk 0:00:51]}  Nd5 {[%clk 0:00:25]} 28. Re1 {[%clk 0:00:47]}  Nb4 {[%clk 0:00:25]} 29. f5 {[%clk 0:00:38]}  Nxd3 {[%clk 0:00:19]} 30. cxd3 {[%clk 0:00:30]}  Rxd3 {[%clk 0:00:20]} 31. f6+ {[%clk 0:00:30]}  Kf8 {[%clk 0:00:19]} 32. Kg2 {[%clk 0:00:28]}  Rcc3 {[%clk 0:00:18]} 33. Rb1 {[%clk 0:00:19]}  Ke8 {[%clk 0:00:16]} 34. Rb8+ {[%clk 0:00:17]}  Kd7 {[%clk 0:00:16]} 35. Rb7+ {[%clk 0:00:16]}  Ke6 {[%clk 0:00:16]} 36. Re7+ {[%clk 0:00:17]}  Kd5 {[%clk 0:00:16]} 37. Rd7+ {[%clk 0:00:17]}  Kxe5 {[%clk 0:00:16]} 38. Rxd3 {[%clk 0:00:16]}  Rxd3 {[%clk 0:00:17]} 39. Rc2 {[%clk 0:00:15]}  Kd5 {[%clk 0:00:17]} 40. Rb2 {[%clk 0:00:15]}  Ra3 {[%clk 0:00:15]} 41. Rb7 {[%clk 0:00:15]}  Rxa2+ {[%clk 0:00:14]} 42. Kf3 {[%clk 0:00:15]}  Ra3+ {[%clk 0:00:14]} 43. Kg4 {[%clk 0:00:16]}  h5+ {[%clk 0:00:11]} 44. Kh4 {[%clk 0:00:16]}  Ra4+ {[%clk 0:00:11]} 45. Kg5 {[%clk 0:00:17]}  Ra3 {[%clk 0:00:11]} 46. Rxf7 {[%clk 0:00:15]}  Rxg3+ {[%clk 0:00:10]} 47. Kf4 {[%clk 0:00:16]}  Rxh3 {[%clk 0:00:10]} 48. Re7 {[%clk 0:00:15]}  Rh1 {[%clk 0:00:10]} 49. Re5+ {[%clk 0:00:13]}  Kd6 {[%clk 0:00:09]} 50. Re3 {[%clk 0:00:12]}  Rf1+ {[%clk 0:00:09]} 51. Kg5 {[%clk 0:00:13]}  c5 {[%clk 0:00:09]} 52. Kxg6 {[%clk 0:00:13]}  c4 {[%clk 0:00:09]} 53. f7 {[%clk 0:00:13]}  Kc5 {[%clk 0:00:09]} 54. Re5+ {[%clk 0:00:13]}  Kd6 {[%clk 0:00:07]} 55. Rf5 {[%clk 0:00:14]}  Rxf5 {[%clk 0:00:06]} 56. Kxf5 {[%clk 0:00:10]}  Ke7 {[%clk 0:00:07]} 0-1


[Site "https://www.chess.com"]

[Event "Titled Tuesday Blitz August 08 Late 2023"]
[White "GAO"]
[Black "Jovic, Stanoje"]
[BlackFideId "905020"]
[WhiteElo "2292"]
[BlackElo "2487"]
[Result "0-1"]
[Round "2"]
[TimeControl "180+1"]
[Date "2023.08.08"]
[WhiteClock "0:01:31"]
[BlackClock "0:01:11"]
[Board "158"]

1. Nf3 {[%clk 0:02:55]}  Nf6 {[%clk 0:02:59]} 2. b3 {[%clk 0:02:53]}  b6 {[%clk 0:02:56]} 3. Bb2 {[%clk 0:02:54]}  e6 {[%clk 0:02:57]} 4. e3 {[%clk 0:02:53]}  Bb7 {[%clk 0:02:57]} 5. d4 {[%clk 0:02:53]}  Be7 {[%clk 0:02:57]} 6. Be2 {[%clk 0:02:53]}  O-O {[%clk 0:02:57]} 7. O-O {[%clk 0:02:52]}  c5 {[%clk 0:02:54]} 8. c3 {[%clk 0:02:50]}  d5 {[%clk 0:02:53]} 9. Nbd2 {[%clk 0:02:47]}  Nc6 {[%clk 0:02:52]} 10. Ne5 {[%clk 0:02:48]}  Nxe5 {[%clk 0:02:52]} 11. dxe5 {[%clk 0:02:49]}  Nd7 {[%clk 0:02:51]} 12. c4 {[%clk 0:02:49]}  Qc7 {[%clk 0:02:45]} 13. f4 {[%clk 0:02:47]}  Rad8 {[%clk 0:02:42]} 14. Qe1 {[%clk 0:02:46]}  f6 {[%clk 0:02:39]} 15. Qd1 {[%clk 0:02:45]}  fxe5 {[%clk 0:02:36]} 16. cxd5 {[%clk 0:02:43]}  exd5 {[%clk 0:02:30]} 17. fxe5 {[%clk 0:02:39]}  Nxe5 {[%clk 0:02:26]} 18. Nf3 {[%clk 0:02:38]}  Ng4 {[%clk 0:02:20]} 19. h3 {[%clk 0:02:13]}  Nxe3 {[%clk 0:02:18]} 20. Qd3 {[%clk 0:02:14]}  Nxf1 {[%clk 0:02:13]} 21. Rxf1 {[%clk 0:02:15]}  Bf6 {[%clk 0:02:07]} 22. Bc1 {[%clk 0:02:09]}  c4 {[%clk 0:01:54]} 23. bxc4 {[%clk 0:02:08]}  dxc4 {[%clk 0:01:54]} 24. Qxc4+ {[%clk 0:02:05]}  Qxc4 {[%clk 0:01:54]} 25. Bxc4+ {[%clk 0:02:06]}  Bd5 {[%clk 0:01:53]} 26. Bxd5+ {[%clk 0:02:03]}  Rxd5 {[%clk 0:01:53]} 27. Bf4 {[%clk 0:02:03]}  Rc8 {[%clk 0:01:48]} 28. Re1 {[%clk 0:01:59]}  Rc2 {[%clk 0:01:43]} 29. Re8+ {[%clk 0:01:58]}  Kf7 {[%clk 0:01:43]} 30. Rb8 {[%clk 0:01:58]}  Rxa2 {[%clk 0:01:40]} 31. Rb7+ {[%clk 0:01:57]}  Ke8 {[%clk 0:01:39]} 32. h4 {[%clk 0:01:55]}  Rb5 {[%clk 0:01:28]} 33. Bg3 {[%clk 0:01:32]}  Rbb2 {[%clk 0:01:25]} 34. Ne1 {[%clk 0:01:32]}  Bc3 {[%clk 0:01:20]} 35. Bd6 {[%clk 0:01:31]}  Bxe1 {[%clk 0:01:14]} 36. Re7+ {[%clk 0:01:31]}  Kd8 {[%clk 0:01:14]} 37. Rxe1 {[%clk 0:01:31]}  Rxg2+ {[%clk 0:01:11]} 38. Kf1 {[%clk 0:01:31]} 0-1


[Site "https://www.chess.com"]

[Event "Titled Tuesday Blitz August 08 Late 2023"]
[White "Rakitic2010"]
[Black "Cagara, Paulina"]
[BlackFideId "1124870"]
[WhiteElo "2480"]
[BlackElo "2277"]
[Result "1-0"]
[Round "2"]
[TimeControl "180+1"]
[Date "2023.08.08"]
[WhiteClock "0:00:30"]
[BlackClock "0:00:24"]
[Board "163"]

1. e4 {[%clk 0:03:00]}  c6 {[%clk 0:02:59]} 2. Nf3 {[%clk 0:03:00]}  d5 {[%clk 0:02:59]} 3. exd5 {[%clk 0:03:01]}  cxd5 {[%clk 0:02:59]} 4. Ne5 {[%clk 0:03:01]}  Nc6 {[%clk 0:02:58]} 5. d4 {[%clk 0:03:01]}  Nf6 {[%clk 0:02:57]} 6. Bb5 {[%clk 0:03:00]}  Bd7 {[%clk 0:02:56]} 7. Bxc6 {[%clk 0:03:00]}  bxc6 {[%clk 0:02:54]} 8. O-O {[%clk 0:03:00]}  e6 {[%clk 0:02:53]} 9. Nd2 {[%clk 0:03:00]}  c5 {[%clk 0:02:53]} 10. Nb3 {[%clk 0:02:57]}  cxd4 {[%clk 0:02:52]} 11. Qxd4 {[%clk 0:02:55]}  Bd6 {[%clk 0:02:50]} 12. Bf4 {[%clk 0:02:54]}  Qc7 {[%clk 0:02:46]} 13. c4 {[%clk 0:02:40]}  O-O {[%clk 0:02:43]} 14. c5 {[%clk 0:02:38]}  Be7 {[%clk 0:02:39]} 15. c6 {[%clk 0:02:11]}  Bc8 {[%clk 0:02:30]} 16. Ng6 {[%clk 0:02:05]}  Qd8 {[%clk 0:02:22]} 17. c7 {[%clk 0:02:00]}  Qd7 {[%clk 0:02:17]} 18. Nxf8 {[%clk 0:01:56]}  Bxf8 {[%clk 0:02:17]} 19. Rfc1 {[%clk 0:01:50]}  Ne4 {[%clk 0:02:10]} 20. Rd1 {[%clk 0:01:35]}  Qb5 {[%clk 0:01:59]} 21. Rac1 {[%clk 0:01:30]}  Ba6 {[%clk 0:01:48]} 22. f3 {[%clk 0:01:15]}  Nd6 {[%clk 0:01:16]} 23. Nc5 {[%clk 0:01:08]}  Nf5 {[%clk 0:01:13]} 24. Qf2 {[%clk 0:00:52]}  Rc8 {[%clk 0:01:03]} 25. Nxa6 {[%clk 0:00:52]}  Qxa6 {[%clk 0:01:03]} 26. Kh1 {[%clk 0:00:51]}  f6 {[%clk 0:01:01]} 27. Qe1 {[%clk 0:00:40]}  e5 {[%clk 0:00:59]} 28. Bxe5 {[%clk 0:00:41]}  fxe5 {[%clk 0:00:58]} 29. Qxe5 {[%clk 0:00:42]}  Qg6 {[%clk 0:00:47]} 30. Qxd5+ {[%clk 0:00:38]}  Kh8 {[%clk 0:00:46]} 31. Qd7 {[%clk 0:00:33]}  Ng3+ {[%clk 0:00:37]} 32. hxg3 {[%clk 0:00:34]}  Qh5+ {[%clk 0:00:31]} 33. Qh3 {[%clk 0:00:33]}  Qe8 {[%clk 0:00:24]} 34. Qxc8 {[%clk 0:00:30]} 1-0


[Site "https://www.chess.com"]

[Event "Titled Tuesday Blitz August 08 Late 2023"]
[White "The_Straightforward_Rook"]
[Black "Ljukin, Sergei"]
[BlackFideId "14102200"]
[WhiteElo "2267"]
[BlackElo "2480"]
[Result "1-0"]
[Round "2"]
[TimeControl "180+1"]
[Date "2023.08.08"]
[WhiteClock "0:01:54"]
[BlackClock "0:00:17"]
[Board "164"]

1. d4 {[%clk 0:02:56]}  d5 {[%clk 0:02:58]} 2. Nf3 {[%clk 0:02:56]}  Nf6 {[%clk 0:02:57]} 3. c4 {[%clk 0:02:56]}  c6 {[%clk 0:02:57]} 4. cxd5 {[%clk 0:02:56]}  cxd5 {[%clk 0:02:57]} 5. Nc3 {[%clk 0:02:57]}  Nc6 {[%clk 0:02:57]} 6. Bf4 {[%clk 0:02:58]}  Bf5 {[%clk 0:02:57]} 7. Qb3 {[%clk 0:02:58]}  Na5 {[%clk 0:02:55]} 8. Qa4+ {[%clk 0:02:58]}  Bd7 {[%clk 0:02:55]} 9. Qc2 {[%clk 0:02:59]}  e6 {[%clk 0:02:54]} 10. e3 {[%clk 0:02:59]}  Nc6 {[%clk 0:02:54]} 11. a3 {[%clk 0:02:58]}  Nh5 {[%clk 0:02:52]} 12. Bg5 {[%clk 0:02:55]}  f6 {[%clk 0:02:34]} 13. Bh4 {[%clk 0:02:55]}  g5 {[%clk 0:02:35]} 14. Bg3 {[%clk 0:02:55]}  f5 {[%clk 0:02:35]} 15. Be5 {[%clk 0:02:51]}  Nxe5 {[%clk 0:02:31]} 16. Nxe5 {[%clk 0:02:52]}  Bd6 {[%clk 0:02:30]} 17. Be2 {[%clk 0:02:49]}  Nf6 {[%clk 0:02:29]} 18. O-O {[%clk 0:02:43]}  O-O {[%clk 0:02:26]} 19. Rac1 {[%clk 0:02:39]}  a6 {[%clk 0:01:42]} 20. f3 {[%clk 0:02:34]}  Rc8 {[%clk 0:01:39]} 21. Qd2 {[%clk 0:02:33]}  b5 {[%clk 0:01:25]} 22. e4 {[%clk 0:02:31]}  f4 {[%clk 0:01:15]} 23. Nxd7 {[%clk 0:02:29]}  Qxd7 {[%clk 0:01:14]} 24. e5 {[%clk 0:02:29]}  Be7 {[%clk 0:01:08]} 25. exf6 {[%clk 0:02:28]}  Bxf6 {[%clk 0:01:08]} 26. Na2 {[%clk 0:02:24]}  e5 {[%clk 0:01:04]} 27. dxe5 {[%clk 0:02:22]}  Bxe5 {[%clk 0:01:04]} 28. Nb4 {[%clk 0:02:22]}  d4 {[%clk 0:01:01]} 29. Bd3 {[%clk 0:02:20]}  Qd6 {[%clk 0:00:52]} 30. Rxc8 {[%clk 0:02:19]}  Rxc8 {[%clk 0:00:52]} 31. Rc1 {[%clk 0:02:20]}  Re8 {[%clk 0:00:41]} 32. Rc6 {[%clk 0:02:14]}  Qe7 {[%clk 0:00:41]} 33. Qe2 {[%clk 0:02:12]}  Qf7 {[%clk 0:00:36]} 34. Rxa6 {[%clk 0:02:07]}  Bg7 {[%clk 0:00:35]} 35. Be4 {[%clk 0:02:04]}  Kh8 {[%clk 0:00:32]} 36. Qd3 {[%clk 0:02:03]}  Qh5 {[%clk 0:00:26]} 37. Ra8 {[%clk 0:01:59]}  Rxa8 {[%clk 0:00:23]} 38. Bxa8 {[%clk 0:02:00]}  Qh4 {[%clk 0:00:17]} 39. Nc2 {[%clk 0:01:54]} 1-0


[Site "https://www.chess.com"]